Cogmind - Beta 17 @@@ ROGUE MODE // 2026.08.04 @ 13:22:33 Player: stickman5564 Result: Destroyed by G-47 Trooper with Particle Gun Performance ------------- Evolutions (3) 1500 Regions Visited (6) 1200 Robots Destroyed (23) 115 Value Destroyed (913) 913 Prototype IDs (0) 0 Alien Tech Used (0) 0 Bonus (0) 0 TOTAL SCORE: 3728 Bonus ------- None Cogmind --------- Core Integrity 0/700 Matter 300/300 Energy 99/100 System Corruption 19% Temperature Cool (9) Movement Core (50) Location -7/Factory Parts ------- > --- POWER (1) -------- (None) > --- PROPULSION (5) --- (None) > --- UTILITY (5) ------ (None) > --- WEAPON (2) ------- (None) > --- INVENTORY (5) ---- Terrain Scanner ECM Suite Hacking Suite Grenade Launcher Improved Datajack Peak State ------------ > --- POWER ------------ Light Nuclear Core > --- PROPULSION ------- Aluminum Leg Carbon-fiber Leg Carbon-fiber Leg Carbon-fiber Leg > --- UTILITY ---------- Heat Sink Medium Storage Unit Terrain Scanner Layered Light Armor Plating Shield Generator > --- WEAPON ----------- Particle Gun Ion Cannon > --- INVENTORY -------- Deuterium Engine Improved Hover Unit Improved Heat Sink ECM Suite Hacking Suite System Restoration Module Assault Cannon Grenade Launcher Subdweller Shrapnel Launcher Improved Datajack [Rating: 29] Favorites ----------- Power Ion Engine Engine Ion Engine Power Core Light Nuclear Core Propulsion Carbon-fiber Leg Treads Light Treads Leg Carbon-fiber Leg Hover Unit Improved Hover Unit Utility Medium Storage Unit Device Terrain Scanner Storage Medium Storage Unit Protection Layered Light Armor Plating Weapon Assault Rifle Energy Gun Medium Laser Energy Cannon Ion Cannon Ballistic Gun Assault Rifle Ballistic Cannon Assault Cannon Launcher Subdweller Shrapnel Launcher Special Weapon Flamer Special Melee Weapon Improved Datajack Build | -11 -10 -10 -8 -7 -7 -7 ------- Run | Yrd Mat Sub Mat Fac Was Fac Slots Evolved 6 | . . . 4 2 . . Power . | . . . . . . . Propulsion 3 | . . . 2 1 . . Utility 3 | . . . 2 1 . . Weapon . | . . . . . . . Parts Attached 40 | 7 1 5 19 . 3 5 Power 6 | 1 . 1 4 . . . Engine 4 | 1 . 1 2 . . . Core 2 | . . . 2 . . . Reactor . | . . . . . . . Propulsion 11 | 2 . 1 6 . . 2 Treads 3 | 2 . 1 . . . . Leg 6 | . . . 6 . . . Wheel . | . . . . . . . Hover 2 | . . . . . . 2 Flight . | . . . . . . . Utility 10 | 1 1 2 4 . 1 1 Device 6 | . . 2 3 . . 1 Storage 2 | 1 1 . . . . . Processor . | . . . . . . . Hackware . | . . . . . . . Protection 2 | . . . 1 . 1 . Artifact . | . . . . . . . Weapon 13 | 3 . 1 5 . 2 2 Energy Gun 4 | 2 . . 1 . . 1 Energy Cannon 1 | . . . . . . 1 Ballistic Gun 3 | 1 . . 2 . . . Ballistic Cannon 1 | . . . 1 . . . Launcher 2 | . . . . . 2 . Special Weapon 1 | . . 1 . . . . Impact Weapon . | . . . . . . . Slashing Weapon . | . . . . . . . Piercing Weapon . | . . . . . . . Special Melee Weapon 1 | . . . 1 . . . Unidentified Prototypes . | . . . . . . . Parts Lost 17 | . . . 2 . . 15 Power 1 | . . . . . . 1 Propulsion 5 | . . . . . . 5 Utility 6 | . . . 1 . . 5 Weapon 5 | . . . 1 . . 4 Highest Loss Streak 9 | . . . 2 . . 9 To Critical Strikes . | . . . . . . . Average Backups 8 | 1 5 7 9 10 10 9 Power . | . 1 1 1 1 1 . Propulsion 1 | . 2 2 2 1 1 . Utility 2 | . . 1 1 3 3 3 Weapon 3 | . 1 2 4 4 4 2 Tool/Special . | . . . . . . . Unused Backups 7 | . . . 4 . . 3 Power . | . . . . . . . Propulsion 1 | . . . 1 . . . Utility 4 | . . . 1 . . 3 Weapon 1 | . . . 1 . . . Tool/Special 1 | . . . 1 . . . Average Slot Usage (%) 77 | . 85 91 74 84 86 70 Engine 5 | . 14 14 6 . . . Core 2 | . . . 2 7 7 4 Treads 10 | . 28 28 10 . . . Leg 14 | . . . 13 30 30 20 Device 11 | . . 6 9 23 23 16 Storage 9 | . 14 14 9 7 7 6 Protection 3 | . . . 4 . 1 4 Energy Gun 6 | . 14 13 7 7 2 1 Ballistic Gun 6 | . 14 14 9 . . . Launcher 3 | . . . . . 9 8 Peak Build Rating 29 | 6 6 10 25 25 27 29 Average Rating 15 | 4 6 8 13 25 24 21 On Entrance 14 | . 6 6 10 25 25 27 Avg Prop Armor Cover (%) . | . . . . . . . Naked Turns 51 | . . . . . . 51 Heaviest Build 39 | 13 18 21 39 27 34 36 Greatest Support 55 | 40 40 40 55 55 55 55 Greatest Overweight (x) 5 | . . . . . . 5 Average Overweight (x) . | . . . . . . . Largest Inventory Capacity 10 | 8 10 10 10 10 10 10 Average Capacity 9 | 6 8 10 10 10 10 9 Most Carried 10 | 4 6 10 10 10 10 10 Average Carried 8 | 2 5 8 9 10 10 9 Final Capacity 10 | 8 10 10 10 10 10 5 Final Carried 10 | 4 6 10 10 10 10 5 Class Distribution -------------------- 58% | Mutant 41% | Scavenger-Mutant Dominant Class ---------------- Mutant | -10/Materials Mutant | -10/Subcaves Mutant | -8/Materials Scavenger-Mutant | -7/Factory Scavenger-Mutant | -7/Waste Scavenger-Mutant | -7/Factory Resources | -11 -10 -10 -8 -7 -7 -7 ----------- Run | Yrd Mat Sub Mat Fac Was Fac Matter Collected 928 | 212 . 188 256 . . 272 Remotely . | . . . . . . . Salvage Created 1435 | . . 116 405 . 589 325 Parts 53 | . . 7 21 . 5 20 Haulers Intercepted . | . . . . . . . Recyclers Shooed . | . . . . . . . Parts Field Recycled . | . . . . . . . Retrieved Matter . | . . . . . . . Parts Self-Destructed 2 | . . 2 . . . . Prevented . | . . . . . . . Parts Restored . | . . . . . . . Kills | -11 -10 -10 -8 -7 -7 -7 ------- Run | Yrd Mat Sub Mat Fac Was Fac Combat Hostiles Destroyed 22 | . . 2 11 . 3 6 Melee 2 | . . . . . . 2 Guns 15 | . . 2 10 . . 3 Cannons 2 | . . . 1 . . 1 AOE 3 | . . . . . 3 . Classes Destroyed 8 | . . 1 4 . 1 2 Worker 1 | . . . . . . 1 Swarmer 4 | . . . 4 . . . Grunt 7 | . . . 5 . . 2 Sentry 3 | . . . 1 . . 2 Hunter 2 | . . . 1 . . 1 Programmer 1 | . . . . . . 1 Compactor 3 | . . . . . 3 . Subdweller 2 | . . 2 . . . . Best Kill Streak 4 | . . 1 4 . 3 3 Combat Bots Only 4 | . . 1 4 . 3 2 Max Kills in Single Turn 2 | . . 1 2 . 1 1 Gunslinging . | . . . . . . . Exploded 1 | . . . . . 1 . Melee 1 | . . . . . . 1 Uniques/NPCs Destroyed . | . . . . . . . Combat | -11 -10 -10 -8 -7 -7 -7 -------- Run | Yrd Mat Sub Mat Fac Was Fac Hostile Shots Fired 414 | . . 21 73 . . 320 Missed 146 | . . 5 19 . . 122 Hits 268 | . . 16 54 . . 198 Melee 9 | . . . . . . 9 Projectile 259 | . . 16 54 . . 189 AOE 2 | . . 2 . . . . Critical Strikes 4 | . . . 1 . . 3 Damage Taken 3107 | . . 361 718 . . 2028 Core 816 | . . 37 65 . . 714 Absorbed by Shields 164 | . . . 20 . . 144 Core Remaining (%) 91 | 100 . 85 88 . . . Volleys Fired 114 | . 5 15 52 . 9 33 Largest 2 | . 2 2 2 . 2 2 Hottest 125 | . 60 120 102 . 102 125 Shots Fired 201 | . 10 23 95 . 15 58 Gun 152 | . 10 22 93 . 1 26 Cannon 38 | . . . 2 . 4 32 Launcher 10 | . . . . . 10 . Special 1 | . . 1 . . . . Kinetic 97 | . 5 15 53 . 9 15 Thermal 99 | . 5 8 42 . 1 43 Explosive 5 | . . . . . 5 . Electromagnetic . | . . . . . . . Robot Hit Streak 13 | . 2 13 5 . 7 10 Robot Miss Streak 5 | . 2 5 2 . 2 4 Penetration Max . | . . . . . . . Secondary Targets . | . . . . . . . Shots Hit Robots 129 | . 5 16 60 . 11 37 Core Hits 68 | . 1 7 24 . 10 26 Critical Kills 2 | . . 1 1 . . . Critical Parts Destroyed . | . . . . . . . Critical Strikes 7 | . . 2 4 . . 1 Burn 5 | . . 1 3 . . 1 Destroy 2 | . . 1 1 . . . Melee Attacks 2 | . . . 2 . . . Impact . | . . . . . . . Slashing . | . . . . . . . Piercing . | . . . . . . . Sneak Attacks 2 | . . . 2 . . . Combat Hostiles . | . . . . . . . Follow-up Attacks . | . . . . . . . Damage Inflicted 2809 | . 63 194 718 . 904 930 Guns 1278 | . 63 182 679 . 16 338 Cannons 582 | . . . 39 . 51 492 Explosions 837 | . . . . . 837 . Melee . | . . . . . . . Ramming 100 | . . . . . . 100 Kinetic 1183 | . 21 119 368 . 492 183 Thermal 1130 | . 42 75 350 . 16 647 Explosive 396 | . . . . . 396 . Electromagnetic . | . . . . . . . Impact . | . . . . . . . Slashing . | . . . . . . . Piercing . | . . . . . . . Highest Corruption 20 | . . . . . 15 20 Average Corruption 15 | . . . . . 9 16 Corruption Purged 3 | . . . . . . 3 Corruption Blocked . | . . . . . . . Effects 45 | . . . . . 7 38 Message Errors 12 | . . . . . 4 8 Matter Fused 6 | . . . . . . 6 Heat Flow Errors 11 | . . . . . 1 10 Energy Discharges 6 | . . . . . 2 4 Parts Rejected 2 | . . . . . . 2 Data Loss (minor) 2 | . . . . . . 2 Data Loss (major) 1 | . . . . . . 1 Misdirections 4 | . . . . . . 4 Weapon Failures 1 | . . . . . . 1 Overload Shots . | . . . . . . . Overflow Damage 5 | . . . . . . 5 Projectiles 5 | . . . . . . 5 Explosions . | . . . . . . . Melee . | . . . . . . . Knockbacks 2 | . . . . . . 2 Impact . | . . . . . . . Kinetic 2 | . . . . . . 2 Secondary . | . . . . . . . Self-Inflicted Damage 22 | . . . . . . 22 Shots . | . . . . . . . Rammed 26 | . . . . . . 26 Targets Rammed 38 | . . . . . . 38 Kicked 12 | . . . . . . 12 Crushed . | . . . . . . . Highest Temperature 264 | . . . 144 . 174 264 Average Temperature 71 | . . . 30 . 102 93 Received Heat Transfer 760 | . . 72 342 . . 346 Siege Activations . | . . . . . . . Martial Activations . | . . . . . . . Shielding Activations . | . . . . . . . Robots Disrupted . | . . . . . . . Combat Hostiles . | . . . . . . . Robots Corrupted . | . . . . . . . Combat Hostiles . | . . . . . . . Parts Fried . | . . . . . . . Impact Corruptions . | . . . . . . . Robots Melted . | . . . . . . . Combat Hostiles . | . . . . . . . Parts Melted 4 | . . . 3 . . 1 Heat Transferred 2992 | . 100 339 1221 . 37 1295 Parts Sabotaged . | . . . . . . . Parts Stolen . | . . . . . . . Parts Stripped . | . . . . . . . Power Chain Reactions . | . . . . . . . Alert | -11 -10 -10 -8 -7 -7 -7 ------- Run | Yrd Mat Sub Mat Fac Was Fac Maximum Alert Level . | . . . . . . . Low Security (%) 100 | 100 100 . 100 100 100 100 Level 1 . | . . . . . . . Level 2 . | . . . . . . . Level 3 . | . . . . . . . Level 4 . | . . . . . . . Level 5 . | . . . . . . . High Security . | . . . . . . . Max Security . | . . . . . . . Peak Influence 99 | . . . 99 28 20 46 Initial 28 | . . . . 28 6 . Average 16 | . . . 36 23 3 5 Influence Increases 562 | . . . 309 . 24 229 Destroy 0b10 Robot/C 340 | . . . 220 . . 120 Destroy 0b10 Robot/NC 5 | . . . . . . 5 Destroy Leader 90 | . . . 50 . . 40 Successful Hack 9 | . . . 9 . . . Disable Machine 30 | . . . 15 . . 15 Destroy Structure 28 | . . . . . 24 4 Partial Spotted 15 | . . . . . . 15 Lose Combat Pursuer 45 | . . . 15 . . 30 Influence Decreases 533 | . . . 247 44 42 200 Entered New Map 46 | . . . . 34 12 . Time Decay 358 | . . . 227 10 30 91 Lost Part 129 | . . . 20 . . 109 Squads Dispatched 6 | . . . 3 . . 3 Investigation 1 | . . . 1 . . . Extermination 2 | . . . . . . 2 Reinforcement 2 | . . . 1 . . 1 Assault . | . . . . . . . Garrison 1 | . . . 1 . . . Intercept . | . . . . . . . Searches Triggered . | . . . . . . . Construction Impeded 1 | . . . . . . 1 Haulers Reinforced . | . . . . . . . Active Scanning Responses . | . . . . . . . Cargo Convoy Interrupts . | . . . . . . . Stealth | -11 -10 -10 -8 -7 -7 -7 --------- Run | Yrd Mat Sub Mat Fac Was Fac Distress Signals 2 | . . . . . . 2 Communications Jammed . | . . . . . . . Distress Signals . | . . . . . . . Times Spotted 48 | . 2 13 15 . 6 12 Peak Tracking Total 6 | . 1 6 4 . 4 4 Tactical Retreats 4 | . . . 1 . 1 2 Traps | -11 -10 -10 -8 -7 -7 -7 ------- Run | Yrd Mat Sub Mat Fac Was Fac Traps Triggered 4 | . . . 1 1 . 2 Indirectly . | . . . . . . . Trap Hack Attempts . | . . . . . . . Triggered . | . . . . . . . Disarmed . | . . . . . . . Reprogrammed . | . . . . . . . Reused . | . . . . . . . Traps Extracted . | . . . . . . . Installed . | . . . . . . . Triggered . | . . . . . . . Machines | -11 -10 -10 -8 -7 -7 -7 ---------- Run | Yrd Mat Sub Mat Fac Was Fac Machines Disabled 2 | . . . 1 . . 1 Max in Single Turn 1 | . . . 1 . . 1 Machines Repaired . | . . . . . . . Machines Dismantled . | . . . . . . . Machines Sabotaged . | . . . . . . . Overloaded Fab Kills . | . . . . . . . Hacking | -11 -10 -10 -8 -7 -7 -7 --------- Run | Yrd Mat Sub Mat Fac Was Fac Machines Accessed 4 | . 2 . 2 . . . Terminals 4 | . 2 . 2 . . . Fabricators . | . . . . . . . Repair Stations . | . . . . . . . Recycling Units . | . . . . . . . Scanalyzers . | . . . . . . . Garrison Access . | . . . . . . . Total Hacks 12 | . 5 . 7 . . . Successful 5 | . 1 . 4 . . . Failed 7 | . 4 . 3 . . . Catastrophic 1 | . . . 1 . . . Database Lockouts . | . . . . . . . Manual . | . . . . . . . Terminals 12 | . 5 . 7 . . . Fabricators . | . . . . . . . Repair Stations . | . . . . . . . Recycling Units . | . . . . . . . Scanalyzers . | . . . . . . . Garrison Access . | . . . . . . . Terminal Hacks 5 | . 1 . 4 . . . Record 4 | . 1 . 3 . . . Emergency Access Points 1 | . . . 1 . . . Fabricator Hacks . | . . . . . . . Repair Station Hacks . | . . . . . . . Recycling Unit Hacks . | . . . . . . . Scanalyzer . | . . . . . . . Garrison Access Hacks . | . . . . . . . Unauthorized Hacks . | . . . . . . . Terminals . | . . . . . . . Fabricators . | . . . . . . . Repair Stations . | . . . . . . . Recycling Units . | . . . . . . . Scanalyzers . | . . . . . . . Garrison Access . | . . . . . . . Data Cores Recovered . | . . . . . . . Used . | . . . . . . . Hacking Detections 4 | . 2 . 2 . . . Full Trace Events . | . . . . . . . Feedback Events . | . . . . . . . Feedback Blocked . | . . . . . . . Robot Schematics Acquired . | . . . . . . . Robots Built . | . . . . . . . Authchips . | . . . . . . . Time . | . . . . . . . Total Robot Build Rating . | . . . . . . . Part Schematics Acquired . | . . . . . . . Parts Built . | . . . . . . . Authchips . | . . . . . . . Time . | . . . . . . . Total Part Build Rating . | . . . . . . . Part Studies Acquired . | . . . . . . . Parts Repaired . | . . . . . . . Time . | . . . . . . . Parts Recycled . | . . . . . . . Recycled Matter . | . . . . . . . Retrieved Matter . | . . . . . . . Retrieved Components . | . . . . . . . Parts Scanalyzed . | . . . . . . . Part Schematics Acquired . | . . . . . . . Parts Damaged . | . . . . . . . Bothacking | -11 -10 -10 -8 -7 -7 -7 ------------ Run | Yrd Mat Sub Mat Fac Was Fac Used RIF Installer . | . . . . . . . Robots Hacked 1 | . . . 1 . . . Non-combat 1 | . . . 1 . . . Combat . | . . . . . . . Robot Hacks Applied 2 | . . . 2 . . . parse_system 1 | . . . 1 . . . check_alert 1 | . . . 1 . . . Relay Couplers Released . | . . . . . . . Fabnet Peak Effective % . | . . . . . . . Robots Rewired . | . . . . . . . Allies Hacked . | . . . . . . . Hacks Repelled . | . . . . . . . Allies | -11 -10 -10 -8 -7 -7 -7 -------- Run | Yrd Mat Sub Mat Fac Was Fac Total Allies 1 | . . . . . 1 . Largest Group 1 | . . . . . 1 . Highest-Rated Group 31 | . . . . . 31 . Highest-Rated Ally 31 | . . . . . 31 . Total Orders . | . . . . . . . Ally Attacks 6 | . . . . . 6 . Total Damage 105 | . . . . . 105 . Kills . | . . . . . . . Allies Corrupted . | . . . . . . . Allies Melted . | . . . . . . . Intel | -11 -10 -10 -8 -7 -7 -7 ------- Run | Yrd Mat Sub Mat Fac Was Fac Active Infowar (turns) 1513 | . . 153 618 33 173 536 Optics 160 | . . 153 7 . . . Terrain 1353 | . . . 611 33 173 536 Robot Analysis Total . | . . . . . . . Derelict Logs Recovered . | . . . . . . . Drone Launches . | . . . . . . . Drone Recoveries . | . . . . . . . Exploration | -11 -10 -10 -8 -7 -7 -7 ------------- Run | Yrd Mat Sub Mat Fac Was Fac Turns Passed 2531 | 88 266 337 842 33 173 792 Spaces Moved 1500 | 49 154 141 427 28 116 585 Core 85 | 6 . . . . . 79 Treads 566 | 43 154 141 228 . . . Legs 737 | . . . 199 28 116 394 Wheels . | . . . . . . . Hover 112 | . . . . . . 112 Flight . | . . . . . . . Fastest Speed 50 | 50 160 160 120 120 120 50 Average Speed 127 | 146 160 160 141 120 120 101 Slowest Speed 300 | 160 160 160 160 120 120 300 Overloaded Moves . | . . . . . . . Propulsion Burnouts . | . . . . . . . Robots Hopped . | . . . . . . . Potential Cave-ins 3 | . . . . . 3 . Cave-ins Triggered . | . . . . . . . Exploration Rate (%) 26 | 3 28 11 35 2 82 22 Regions Visited 6 Branch Regions 1 Pre-discovered Areas . | . . . . . . . Known Exits Taken . | . . . . . . . Unknown Exits Taken 4 | 1 1 1 1 . . . Scrap Searched . | . . . . . . . Spaces Dug . | . . . . . . . Terrain Destroyed 41 | . . . . . 40 1 Melee . | . . . . . . . Projectile 2 | . . . . . 1 1 AOE 39 | . . . . . 39 . Terrain Rammed . | . . . . . . . Walls Destroyed . | . . . . . . . Machines Disabled . | . . . . . . . Actions | -11 -10 -10 -8 -7 -7 -7 --------- Run | Yrd Mat Sub Mat Fac Was Fac Total 1898 | 65 164 230 575 28 133 703 Wait 145 | . 1 57 47 . 6 34 Move 1495 | 48 153 140 426 28 115 585 Hop . | . . . . . . . Pick Up 32 | 10 3 7 8 . . 4 Fast Attach 11 | . . . 10 . 1 . Attach 16 | 6 . 1 3 . . 6 Detach . | . . . . . . . Swap 22 | 1 1 5 11 . 2 2 Drop 23 | . 1 5 16 . . 1 Fire 114 | . 5 15 52 . 9 33 Melee 2 | . . . 2 . . . Ram 26 | . . . . . . 26 Kick 12 | . . . . . . 12 Crush . | . . . . . . . Escape Stasis . | . . . . . . . Rewire . | . . . . . . . Trap . | . . . . . . . Miscellaneous . | . . . . . . . Route ------- -11/Scrapyard -10/Materials (discovered 2 exits: [*Min] / [*Sub]) -10/Subcaves -8/Materials (discovered 2 exits: [*Fac] / [*Sto]) -7/Factory -7/Waste -7/Factory History --------- Turn | Location | Event 10 | -11/Scrapyard | Discovered new exit (range 14) 89 | -11/Scrapyard | Entered Materials 151 | -10/Materials | Discovered new exit (range 15) 305 | -10/Materials | Build established: Mutant 341 | -10/Materials | Discovered new exit (range 9) 355 | -10/Materials | Entered Subcaves 356 | -10/Subcaves | A swath of the cavern ceiling suddenly collapsed 461 | -10/Subcaves | Shifting Twisted Machinery released Flamer 490 | -10/Subcaves | Ambushed by swarm of Subdwellers 518 | -10/Subcaves | Ambushed by Subdweller buried in earth 520 | -10/Subcaves | Ambushed by Subdweller buried in earth 608 | -10/Subcaves | Discovered new exit (range 18) 692 | -10/Subcaves | Entered Materials 692 | -8/Materials | Evolved 4 slots: Propulsion x2, Utility x2 1207 | -8/Materials | Garrison activated, responded to threat 1288 | -8/Materials | Discovered new exit (range 7) 1439 | -8/Materials | Discovered new exit (range 15) 1534 | -8/Materials | Entered Factory 1534 | -7/Factory | Evolved 2 slots: Propulsion x1, Utility x1 1555 | -7/Factory | Build established: Scavenger-Mutant 1567 | -7/Factory | Sucked down chute 1567 | -7/Factory | Entered Waste 1568 | -7/Waste | Met a frightened Derelict 1582 | -7/Waste | EMP discharged 1599 | -7/Waste | Spotted C-40 Crusher 1612 | -7/Waste | Spotted C-40 Crusher 1612 | -7/Waste | Spotted C-40 Crusher 1630 | -7/Waste | Destroyed C-40 Crusher 1638 | -7/Waste | Destroyed C-40 Crusher 1641 | -7/Waste | Destroyed C-40 Crusher 1641 | -7/Waste | Spotted C-40 Crusher 1647 | -7/Waste | Spotted C-40 Crusher 1671 | -7/Waste | Spotted C-40 Crusher 1682 | -7/Waste | EMP discharged 1682 | -7/Waste | System corruption reached 10% 1729 | -7/Waste | Discovered new exit (range 10) 1740 | -7/Waste | Entered Factory 2363 | -7/Factory | Lost 9 parts (4n3u2w) 2458 | -7/Factory | Core integrity fell below 50% 2486 | -7/Factory | Core integrity fell below 20% 2512 | -7/Factory | Lost 5 parts (1n2u2w) 2532 | -7/Factory | Destroyed by G-47 Trooper with Particle Gun Last Messages --------------- Slammed into Y-54 Guardian. R-06 Scavenger collects Targeting Computer. System corrupted: Heat flow error (+263). Slammed into Y-54 Guardian. R-06 Scavenger collects Carbon-fiber Leg. Slammed into Y-54 Guardian. Med. Storage Unit destroyed. Slammed into Y-54 Guardian. R-06 Scavenger collects Assault Rifle. Slammed into Y-54 Guardian. R-06 Scavenger collects Sub. Shrapnel Launcher. Slammed into Y-54 Guardian. Destabilizing: System corrupted (+2). Slammed into Y-54 Guardian. Y-54 Guardian destroyed. Acquired 62 matter. ALERT: Potential suspicious activity detected, Programmers report to Factory Zone 9I. K-01 Serf collects debris. YYQWGK |KE2OHU<9WTT35#MJZFCSE/TJ# Map ----- +----------------------------------------------------+ | # """ # # | | # """ # """ """ #[ | | # + """ """ + | | # """ # """ """ ########### | | !! # """ # "" "" ######### # # | | !! # """ # "" "" # ! # # # | | !! # # # # # # | | # """ # """ """ # " !!/ # # # | | + """ / """ """ # " !/ # + # | | " # """ #"" """ """ # " !/ + # """ """ # | | " # #"" "" "" # " # # """ """ # | | " # """ #"" "" "" # " # # """ """ # | | # """ #T # " # #####+##### | | + """ ! #"" # " "" # ?????? ? | | ##### #"" # " T" # ??????? | | ??#?#########"" # " "" # ????? | | ????????????# # # ???? | | ????????????# ##+###### ???? | | ???#????????####+### #??######+######+##??? | | ?????????????? # #?# ?????????? | | ???????????? """ # #?? !#?? ?????? | | ???????#?? """ # #?? * #????????? | | ?????????# """ # #?# #????????? | | ?????????# "" #^ #?# """ """ #????????? | | ?????????# "Y # #?# """ """ #?????""?? | | ?????????# "" # @ #???""" """ #????????? | | ?????????# ! # #????? ??????????# | | ???????????###?###?# g a ########+#???????????? | | ???????????????????# #?????????#?? | | ???????????????????# ######## #???????????? | | ?????????#?????????# #??????# ############# | | ???????????????????# #??????# | | ??????????????######+#+####+###????############### | | ??????????????# #??????????????????? | | ??????????????#"" #??????????????????? | | ??????????????#"" #??????????????????? | | ??????????????#"Y #??????????????????? | | ??????????????#"" #????#?????????????? | | ??????????????#"" #???#??????????????? | | ??????????????# #??????????????????? | | ??????????????# """"""""" ##?????????????????? | | ??????????????# #?????#????????????? | | ??????????????# #??????????????????? | | ??????????????#################??????????????????? | | ??????????????????????????????????????#??????????? | | ?????????????????????????????????????????????????? | | ?????????????????????????????????????????????????? | | ?????????????????????????????????????????????????? | | ?????????????????????????????????????????????????? | | ?????????????????????????????????????????????????? | +----------------------------------------------------+ Best States ------------- Heat Dissipation 44 Energy Generation 15 Energy Capacity 275 Matter Stores 300 Matter Capacity 300 Sight Range 21 Terrain Scan Range 14 Terrain Scan Density 10 Armor Coverage 800 Evasion (%) 55 Recoil Reduction 2 Item Schematics ----------------- None Robot Schematics ------------------ None Fabricated ------------ Nothing Repaired ---------- Nothing Studied --------- None Alien Tech Used ----------------- None Achievements -------------- Do Not Disturb Fist Fight Junior Dev Spot Them First Challenges ------------ None Game ------ Seed DerelictPitchforkTube Manual? 0 Play Time 00:56:43 Cumulative 5.4 hours Start 2026.08.04 @ 12:19:59 End 2026.08.04 @ 13:22:33 Sessions 1 Manual Loads 0 Difficulty Rogue Special Mode None Game No. 6 Rogue 6 Adventurer 0 Explorer 0 Win Type - Total 0 Types 0/0/0/0/0/0/0/0/0/0 Lore% 6 Gallery% 5 Achievement% 7 Wizard Run 0 Options --------- Layout 1 ASCII 1 Keyboard 0 Movement Mouse Keybinds 0 Fullscreen 1 Font 24/Smallcaps Map View 50x40 Zoom Use 0% Tactical HUD 0 Map Filters NONE Filters NONE Steam 1 RUN: c7102b12-09e0-4442-8493-aa465a68f262